bitfinex/quotes_ETHUSD_20220117
["timestamp","ask_amount","ask_price","bid_price","bid_amount"]
[1642411942190,0.23594061,3270.2,3270.1,1.0]
[1642411942390,0.23051321,3270.2,3270.0,0.00113685]
[1642411942591,0.23051321,3270.2,3270.1,3.1]
[1642411942992,0.23051321,3270.2,3270.1,4.1]
[1642411943841,0.23051321,3270.2,3270.1,3.1]
[1642411945033,0.23051321,3270.2,3270.1,4.1]
[1642411946037,0.23051321,3270.2,3270.1,3.1]
[1642411956293,2.32481994,3270.3,3270.1,3.1]
[1642411959738,1.56029994,3270.2,3270.1,3.1]
[1642411960738,2.32481994,3270.3,3270.1,3.1]
[1642411962784,0.91240876,3270.2,3270.1,3.1]
[1642411963185,4.30225282,3270.2,3270.1,3.1]
[1642411963385,10.75225282,3270.2,3270.1,3.1]
[1642411963585,1.35040876,3270.2,3269.4,2.24958378]
[1642411963786,3.08969142,3270.1,3269.4,2.70874029]
[1642411963988,0.438,3270.0,3269.5,0.00170527]
[1642411964186,0.40768756,3269.9,3269.5,0.00170527]
[1642411964386,0.84568756,3269.9,3269.5,0.00170527]
[1642411965189,1.56029994,3269.7,3269.5,0.00170527]
[1642411965587,3.08989994,3269.7,3269.3,0.00284211]
[1642411966239,0.91240876,3269.6,3269.3,0.00284211]
[1642411968241,0.91240876,3269.6,3269.3,4.19534952]
[1642411968440,0.91240876,3269.6,3269.3,1.00284211]
[1642411968640,0.91240876,3269.6,3269.4,0.00227369]
[1642411969345,1.56029994,3269.9,3269.5,13.81250446]
[1642411969540,0.00113685,3270.0,3269.6,4.48041515]
[1642411969541,1.19121989,3269.7,3269.6,4.48041515]
[1642411969741,1.989e-05,3269.7,3269.6,1.00113684]
[1642411970793,0.00113685,3270.0,3269.6,1.00113684]
[1642411971588,0.00113685,3270.0,3269.6,1.76549684]
[1642411971791,1.56029994,3270.7,3269.7,1.54481587]
[1642411971993,1.56029994,3270.7,3269.7,1.84652114]
[1642411972188,1.56029994,3270.7,3269.8,0.00113685]
[1642411972189,0.00341054,3270.6,3269.8,0.00113685]
[1642411972589,0.00284212,3270.5,3269.8,0.00113685]
[1642411972988,1.56029994,3270.7,3269.8,0.00113685]
[1642411972989,0.00227369,3270.4,3269.8,0.00113685]
[1642411973391,0.00170527,3270.3,3269.8,0.00113685]
[1642411973839,0.00113685,3270.2,3270.1,1.33583499]
[1642411974037,0.00113685,3270.2,3270.1,1.93583499]
[1642411974439,0.00113685,3270.2,3270.1,0.6]
[1642411974642,0.00113685,3270.2,3269.8,0.30113685]
[1642411974841,0.00113685,3270.2,3269.8,1.30113685]
[1642411975438,0.76569685,3270.2,3269.8,0.30113685]
[1642411975638,0.76569685,3270.2,3269.8,1.00113685]
[1642411975838,0.76569685,3270.2,3269.8,0.00113685]
[1642411977486,0.76569685,3270.2,3269.8,1.00113685]
[1642411977686,0.76569685,3270.2,3269.9,2.73497507]
[1642411978089,0.76569685,3270.2,3270.0,1.0]
[1642411978290,0.76569685,3270.2,3269.9,0.3]
[1642411978490,0.76569685,3270.2,3270.0,1.0]
[1642411978689,0.00113685,3270.2,3270.0,3.74100533]
[1642411978890,0.00113685,3270.2,3270.1,3.92372086]
[1642411979089,0.00113685,3270.2,3270.1,4.22372086]
[1642411979894,0.00113685,3270.2,3270.1,3.92372086]
[1642411981437,0.00113685,3270.2,3270.1,4.22372086]
[1642411982037,0.00113685,3270.2,3270.1,1.3]
[1642411982441,0.00113685,3270.2,3270.1,0.3]
[1642411982644,0.00113685,3270.2,3269.9,4.52104303]
[1642411984140,0.00113685,3270.2,3269.9,1.6]
[1642411984540,0.00113685,3270.2,3269.9,0.3]
[1642411984740,0.00113685,3270.2,3269.8,1.60113685]
[1642411984994,0.76567685,3270.2,3269.8,1.60113685]
[1642411985390,0.76567685,3270.2,3269.8,0.30113685]
[1642411985587,0.76567685,3270.2,3269.8,0.00113685]
[1642411987597,0.00113685,3270.2,3269.8,0.00113685]
[1642411988837,0.76566685,3270.2,3269.8,0.00113685]
[1642411989037,0.00113685,3270.2,3269.8,0.00113685]
[1642411990039,0.00113685,3270.2,3269.8,1.23325603]
[1642411990243,0.00113685,3270.2,3269.9,2.84815906]
[1642411990439,0.00113685,3270.2,3269.9,3.14815906]
[1642411990640,0.00113685,3270.2,3270.0,1.0]
[1642411992040,0.00113685,3270.2,3269.9,0.3]
[1642411992241,0.00113685,3270.2,3269.8,1.00113685]
[1642411993286,1.37419961,3270.2,3269.9,1.22109015]
[1642411993487,2.5737518,3270.2,3269.9,1.22109015]
[1642411993787,4.1029318,3270.2,3269.9,1.22109015]
[1642411994386,4.1029318,3270.2,3269.8,2.222227]
[1642411994588,4.1029318,3270.2,3269.8,1.222227]
[1642411994789,7.14271321,3270.2,3269.8,1.222227]
[1642411994988,0.01017549,3270.1,3269.8,1.222227]
[1642411995187,4.1029318,3270.2,3269.8,0.00113685]
[1642411995392,1.37306276,3270.1,3269.8,0.00113685]
[1642411995587,1.37306276,3270.1,3269.5,0.00284212]
[1642411996837,1.56029994,3270.0,3269.5,0.00284212]
[1642411997039,1.56029994,3270.0,3269.9,0.1711504]
[1642411998043,1.37306276,3270.0,3269.9,1.51450329]
[1642412001291,1.37306276,3270.0,3269.9,4.61450329]
[1642412002089,1.51030018,3270.0,3269.9,4.61450329]
[1642412003935,1.51030018,3270.0,3269.9,3.2711504]
[1642412006136,1.51030018,3270.0,3269.5,1.00284212]
[1642412006536,1.51030018,3270.0,3269.6,0.00227369]
[1642412006743,1.51030018,3270.0,3269.9,0.256749]
[1642412006938,1.51030018,3270.0,3269.9,0.16370579]
[1642412007138,3.07060012,3270.0,3269.9,0.16370579]
[1642412007990,1.51030018,3270.0,3269.9,0.16370579]
[1642412011137,1.51030018,3270.0,3269.6,0.00227369]
[1642412011534,1.51030018,3270.0,3269.5,0.00284212]
[1642412013537,2.93525301,3269.9,3269.5,0.00284212]
[1642412014538,1.37306276,3269.9,3269.5,1.19961948]
[1642412014987,1.37306276,3269.9,3269.6,0.00227369]
[1642412016992,1.79786008,3269.9,3269.8,0.0956604]
[1642412017289,1.79786008,3269.9,3269.8,0.09679725]
[1642412019237,1.79786008,3269.9,3269.8,0.00113685]
[1642412019638,1.79786008,3269.9,3269.5,0.00284212]
[1642412020238,1.79786008,3269.9,3269.5,1.24494642]
[1642412020634,1.79786008,3269.9,3269.6,0.00227369]
[1642412021036,1.37306276,3269.8,3269.6,0.00227369]
[1642412021836,1.37306276,3269.7,3269.6,0.00227369]
[1642412022237,1.37306276,3269.7,3269.5,0.00284212]
[1642412022488,2.13772276,3269.7,3269.4,2.71795779]
[1642412022689,2.13772276,3269.7,3269.4,0.00341054]
[1642412022889,2.13772276,3269.7,3269.5,0.00284212]
[1642412023088,2.13772276,3269.7,3269.4,0.00341054]
[1642412023289,1.37306276,3269.6,3269.5,1.19782639]
[1642412023988,1.37306276,3269.6,3269.4,1.19782639]
[1642412024789,1.37306276,3269.6,3269.5,1.19782639]
[1642412025392,1.37306276,3269.6,3269.4,1.19782639]
[1642412025993,1.37306276,3269.6,3269.5,1.19782639]
[1642412026936,1.62427662,3269.6,3269.5,1.3174178]
[1642412027738,1.62427662,3269.6,3269.5,0.11959141]
[1642412027937,1.62427662,3269.6,3268.9,6.8682]
[1642412028137,0.76485,3269.5,3268.9,6.8682]
[1642412028336,0.76485,3269.5,3269.0,0.00568423]
[1642412029140,0.76485,3269.5,3268.9,0.00625266]
[1642412029741,1.56219025,3269.4,3268.9,0.00625266]
[1642412031196,0.76485,3269.5,3268.9,0.00625266]
[1642412031999,0.21292133,3269.3,3268.9,0.00625266]
[1642412032194,1.07462133,3269.3,3268.9,0.00625266]
[1642412032396,0.76479,3269.2,3268.8,0.00682108]
[1642412033649,0.21292133,3269.3,3269.1,1.47199635]
[1642412033841,0.21292133,3269.3,3269.2,2.84191048]
[1642412034042,0.21292133,3269.3,3269.2,2.84645787]
[1642412034240,0.21148942,3269.3,3269.2,3.84645787]
[1642412035844,0.21148942,3269.3,3269.2,4.14645787]
[1642412036044,0.21148942,3269.3,3269.2,4.44645787]
[1642412036243,0.21148942,3269.3,3269.2,22.32645787]
[1642412036644,0.21148942,3269.3,3269.2,19.18454739]
[1642412037249,0.21148942,3269.3,3269.2,19.48454739]
[1642412037683,0.21148942,3269.3,3269.2,1.60454739]
[1642412038684,0.21148942,3269.3,3269.2,0.60454739]
[1642412038886,0.21148942,3269.3,3269.2,1.00454739]
[1642412039085,0.21148942,3269.3,3269.2,0.60454739]
[1642412039286,0.21148942,3269.3,3269.2,0.30454739]
[1642412039485,0.21148942,3269.3,3269.2,0.00454739]
[1642412040485,0.21148942,3269.3,3268.6,23.25845685]
[1642412040486,0.21148942,3269.3,3269.1,0.00511581]
[1642412040786,0.21148942,3269.3,3268.7,1.12042778]
[1642412041241,0.21148942,3269.3,3268.8,0.00682108]
[1642412041636,0.21148942,3269.3,3268.8,1.00682108]
[1642412041837,0.21148942,3269.3,3268.8,1.30682108]
[1642412042038,0.21148942,3269.3,3268.9,0.00625266]
[1642412044242,0.21148942,3269.3,3268.9,1.65780951]
[1642412044541,0.21148942,3269.3,3268.9,19.53780951]
[1642412044743,0.21148942,3269.3,3269.0,1.0]
[1642412044987,0.21148942,3269.3,3269.0,1.6]
[1642412045186,0.21148942,3269.3,3269.1,0.00511581]
[1642412046587,0.21148942,3269.3,3268.8,0.30682108]
[1642412046888,0.21148942,3269.3,3268.9,0.00625266]
[1642412048388,0.21148942,3269.3,3268.8,0.00682108]
[1642412049139,0.21148942,3269.3,3269.0,0.88787678]
[1642412049140,1.72271954,3269.2,3269.0,0.88787678]
[1642412049540,1.72271954,3269.2,3269.1,0.00511581]
[1642412049541,2.43621954,3269.2,3269.1,0.00511581]
[1642412049941,3.96587954,3269.2,3269.1,0.00511581]
[1642412050145,4.72527954,3269.2,3269.1,0.00511581]
[1642412050340,4.72527954,3269.2,3268.9,0.88787678]
[1642412051142,5.02527954,3269.2,3268.9,0.88787678]
[1642412051340,0.76481,3269.1,3268.9,0.88787678]
[1642412051740,0.76481,3269.1,3268.1,4.3942]
[1642412052141,0.76481,3269.1,3268.4,0.00397896]
[1642412052390,0.76481,3269.1,3268.4,1.00397896]
[1642412052797,0.76481,3269.1,3268.5,0.00341054]
[1642412053991,3.28985867,3269.0,3268.5,0.00341054]
[1642412054992,1.72271954,3269.0,3268.5,0.00341054]
[1642412055791,2.01475998,3269.0,3268.5,0.00341054]
[1642412057037,0.21276626,3268.9,3268.5,0.00341054]
[1642412057238,0.21276626,3268.9,3268.2,1.00511581]
[1642412057438,0.76492,3268.8,3268.3,0.00454739]
[1642412057942,1.3468706,3268.4,3268.3,0.00454739]
[1642412058739,1.3468706,3268.4,3268.2,0.00511581]
[1642412059340,1.3468706,3268.4,3268.1,0.00568423]
[1642412059538,3.06959014,3268.4,3268.1,0.00568423]
[1642412060384,1.72271954,3268.4,3268.1,1.00568423]
[1642412060785,0.76492,3268.8,3268.2,0.83074635]
[1642412060786,1.72271954,3268.3,3268.2,0.83074635]
[1642412062085,1.93546799,3268.3,3268.2,0.83074635]
[1642412062285,0.21274845,3268.3,3268.2,0.83074635]
[1642412062985,1.93546799,3268.3,3268.2,1.13074635]
[1642412063847,0.21274845,3268.3,3268.2,0.83074635]
[1642412064749,1.93546799,3268.3,3268.2,0.83074635]
[1642412065349,0.21274845,3268.3,3268.2,0.83074635]
[1642412065548,0.21274845,3268.3,3268.2,1.13074635]
[1642412068393,0.21274845,3268.3,3268.2,1.43074635]
[1642412071241,0.21274845,3268.3,3268.2,1.40563108]
[1642412072044,0.21274845,3268.3,3268.2,10.35563108]
[1642412072239,0.21274845,3268.3,3268.2,11.35563108]
[1642412073855,0.21274845,3268.3,3268.2,11.52715508]
[1642412074439,0.21274845,3268.3,3268.2,12.29182508]
[1642412076202,0.21274845,3268.3,3268.2,3.02698296]
[1642412077296,0.21274845,3268.3,3268.2,2.72698296]
[1642412077496,0.21274845,3268.3,3268.2,1.27715508]
[1642412077700,0.21274845,3268.3,3268.2,2.27715508]
[1642412077899,0.21274845,3268.3,3268.2,1.27715508]
[1642412078298,0.21274845,3268.3,3268.2,1.00227035]
[1642412079645,0.21274845,3268.3,3268.2,1.30227035]
[1642412081551,0.21274845,3268.3,3268.2,2.06701035]
[1642412081746,0.21274845,3268.3,3268.2,2.36701035]
[1642412081945,0.21274845,3268.3,3268.2,7.16701035]
[1642412082147,0.21274845,3268.3,3268.2,8.16701035]
[1642412082593,0.21274845,3268.3,3268.2,3.36701035]
[1642412082792,0.21274845,3268.3,3268.2,2.60227035]
[1642412082992,0.21274845,3268.3,3268.2,1.60227035]
[1642412083193,0.21274845,3268.3,3268.2,2.60227035]
[1642412083999,0.21274845,3268.3,3268.2,1.60227035]
[1642412084197,0.21274845,3268.3,3268.2,2.60227035]
[1642412085000,0.21274845,3268.3,3268.2,1.60227035]
[1642412085198,0.21274845,3268.3,3268.2,2.60227035]
[1642412085998,0.21274845,3268.3,3268.2,1.60227035]
[1642412086244,0.21274845,3268.3,3268.2,2.60227035]
[1642412086844,1.96759703,3268.3,3268.2,2.30227035]
[1642412087540,0.21274845,3268.3,3268.2,2.30227035]
[1642412088544,0.21274845,3268.3,3268.2,1.30227035]
[1642412088545,1.90531925,3268.3,3268.2,1.30227035]
[1642412089343,0.21274845,3268.3,3268.2,1.30227035]
[1642412090293,1.90531925,3268.3,3268.2,1.30227035]
[1642412090695,1.90531925,3268.3,3268.2,1.29715454]
[1642412090893,1.87319664,3268.3,3268.2,1.29715454]
[1642412091895,1.87319664,3268.3,3268.2,0.99715454]
[1642412092097,5.56776006,3268.3,3268.2,0.99715454]
[1642412092895,12.16776006,3268.3,3268.2,0.99715454]
[1642412093295,12.16776006,3268.3,3268.2,0.171524]
[1642412093654,13.73489919,3268.3,3268.2,0.171524]
[1642412093942,7.13489919,3268.3,3268.2,0.171524]
[1642412094244,10.00821264,3268.3,3268.2,0.171524]
[1642412094840,7.13489919,3268.3,3268.2,0.171524]
[1642412095441,9.9699545,3268.3,3268.0,0.5154594]
[1642412095840,9.9699545,3268.3,3268.1,0.00568423]
[1642412096041,2.82997353,3268.2,3268.1,0.00568423]
[1642412097497,9.01016595,3268.3,3268.1,0.00568423]
[1642412097697,3.26011078,3268.2,3268.1,0.00568423]
[1642412098999,4.47803443,3268.2,3268.1,0.00568423]
[1642412100000,6.04557441,3268.2,3268.1,0.00568423]
[1642412100701,6.48357441,3268.2,3268.1,0.00568423]
[1642412100901,4.91603443,3268.2,3268.1,0.00568423]
[1642412101947,5.21603443,3268.2,3268.1,0.00568423]
[1642412102244,5.43236287,3268.2,3268.1,0.00568423]
[1642412102842,7.73757617,3268.2,3268.1,0.00568423]
[1642412103644,2.64689924,3268.2,3268.1,0.00568423]
[1642412103846,5.43871664,3268.2,3268.1,0.00568423]
[1642412104645,7.00379056,3268.2,3268.1,0.00568423]
[1642412104895,6.70379056,3268.2,3268.1,0.00568423]
[1642412106596,5.13871664,3268.2,3268.1,0.00568423]
[1642412106796,5.13871664,3268.2,3268.0,0.51318315]
[1642412106999,2.77867297,3268.1,3268.0,0.51318315]
[1642412107199,3.21667297,3268.1,3268.0,0.51318315]
[1642412108656,6.47266927,3268.1,3268.0,0.51318315]
[1642412109046,3.6939963,3268.1,3268.0,0.51318315]
[1642412110050,0.438,3268.1,3268.0,0.51318315]
[1642412111049,1.6925708,3268.1,3268.0,0.51318315]
[1642412112053,2.13795224,3268.1,3268.0,0.51318315]
[1642412112497,2.1204721,3268.1,3267.4,1.20249799]
[1642412112898,2.1204721,3268.1,3267.5,0.00341055]
[1642412115197,2.1204721,3268.1,3267.2,0.00511582]
[1642412116548,3.66543726,3268.0,3267.2,0.00511582]
[1642412116746,1.11984635,3267.9,3267.2,0.00511582]
[1642412116942,1.11984635,3267.9,3267.4,0.11631417]
[1642412116943,0.738,3267.8,3267.4,0.11631417]
[1642412117543,1.52904319,3267.5,3267.4,0.11631417]
[1642412117745,1.96704319,3267.5,3267.4,0.11631417]
[1642412117944,1.96704319,3267.5,3267.4,0.12029314]
[1642412118344,1.96704319,3267.5,3266.7,0.45544689]
[1642412118345,3.438,3267.5,3266.7,0.45544689]
[1642412118547,0.76551,3267.2,3266.7,0.45544689]
[1642412118847,1.20353,3267.1,3266.8,0.00341054]
[1642412119046,1.4000713,3267.0,3266.8,0.00341054]
[1642412119247,0.74254279,3266.9,3266.1,0.0073895]
[1642412119446,1.42973381,3266.7,3266.1,0.0073895]
[1642412119746,1.86773381,3266.7,3266.1,0.0073895]
[1642412120194,0.438,3266.7,3266.1,0.0073895]
[1642412122000,0.46509793,3266.6,3266.1,0.0073895]
[1642412122603,2.15766873,3266.6,3266.1,0.0073895]
[1642412125562,2.15766873,3266.6,3266.1,1.0073895]
[1642412125763,2.15766873,3266.6,3266.1,0.0073895]
[1642412125965,2.15766873,3266.6,3266.2,0.00682108]
[1642412126163,2.15766873,3266.6,3266.1,1.0073895]
[1642412126363,2.15766873,3266.6,3266.2,0.00682108]
[1642412126563,0.46509793,3266.6,3266.2,0.00682108]
[1642412126767,0.46509793,3266.6,3266.5,1.38983259]
[1642412127063,0.69756791,3266.6,3266.5,1.3949484]
[1642412128103,0.69756791,3266.6,3266.5,0.00511581]
[1642412128501,0.69756791,3266.6,3266.2,0.00682108]
[1642412129101,3.31971544,3266.6,3266.2,0.00682108]
[1642412129803,0.69756791,3266.6,3266.2,0.00682108]
[1642412130002,0.69756791,3266.6,3266.3,1.54975709]
[1642412130401,0.69756791,3266.6,3266.4,0.00568423]
[1642412130602,2.62216796,3266.5,3266.4,0.00568423]
[1642412131255,0.69756791,3266.6,3266.4,0.00568423]
[1642412133255,0.64756791,3266.6,3266.4,0.00568423]
[1642412134256,2.62207995,3266.5,3266.4,0.00568423]
[1642412135798,0.64756791,3266.6,3266.4,0.00568423]
[1642412136801,2.6220574,3266.5,3266.4,0.00568423]
[1642412136998,2.84968307,3266.5,3266.4,0.00568423]
[1642412137400,2.70977352,3266.5,3266.4,0.00568423]
[1642412137601,2.70977352,3266.5,3266.2,0.00682108]
[1642412138846,0.22762567,3266.5,3266.2,0.00682108]
[1642412145104,0.22762567,3266.5,3265.9,0.00852635]
[1642412145505,0.22762567,3266.5,3265.9,1.00852635]
[1642412145705,0.002739,3266.4,3265.9,1.00852635]
[1642412145908,0.002739,3266.4,3266.0,0.00795793]
[1642412146951,0.23036169,3266.4,3266.0,0.00795793]
[1642412148153,0.23036169,3266.4,3266.0,17.88795793]
[1642412148353,0.23036169,3266.4,3266.0,0.30795793]
[1642412148555,0.23036169,3266.4,3266.1,0.0073895]
[1642412148752,0.25514962,3266.4,3266.1,0.3073895]
[1642412149152,0.25514962,3266.4,3266.2,0.00682108]
[1642412149554,0.25514962,3266.4,3266.1,0.0073895]
[1642412149757,0.25514962,3266.4,3266.0,0.00795793]
[1642412150998,1.5634255,3267.3,3266.7,1.07271782]
[1642412150999,0.02478793,3266.8,3266.7,1.07271782]
[1642412151399,0.02478793,3266.8,3266.7,1.07669678]
[1642412152599,0.02478793,3266.8,3266.7,2.07669678]
[1642412152798,0.02478793,3266.8,3266.7,1.07669678]
[1642412153001,0.02478793,3266.8,3266.7,2.07669678]
[1642412153199,0.02478793,3266.8,3266.7,1.07669678]
[1642412153401,0.02478793,3266.8,3266.7,2.07669678]
[1642412154650,0.02478793,3266.8,3266.7,1.07669678]
[1642412154854,0.02478793,3266.8,3266.7,2.07669678]
[1642412155448,0.26163536,3267.3,3266.7,2.07669678]
[1642412156055,0.26163536,3267.3,3266.7,1.07669678]
[1642412156249,0.26163536,3267.3,3266.7,2.07669678]
[1642412157052,0.45511371,3266.8,3266.7,1.07669678]
[1642412158103,3.07704849,3266.8,3266.7,1.07669678]
[1642412158302,3.07704849,3266.8,3266.7,2.07669678]
[1642412158504,3.07704849,3266.8,3266.7,1.07669678]
[1642412158703,3.07704849,3266.8,3266.7,2.07669678]
[1642412158907,1.82506086,3267.3,3266.7,1.07669678]
[1642412159108,1.5634255,3267.2,3266.7,2.07669678]
[1642412159904,1.5634255,3267.2,3266.7,1.07669678]
[1642412160105,3.11526821,3267.2,3266.7,0.00397896]
[1642412161258,1.5634255,3266.9,3266.7,0.00397896]
[1642412162050,1.5634255,3266.9,3266.8,0.22647797]
[1642412162252,1.5634255,3267.0,3266.8,0.22647797]
[1642412162651,1.8634255,3267.0,3266.9,0.00284212]
[1642412162852,0.3,3267.0,3266.9,0.00284212]
[1642412163053,3.17459807,3267.1,3266.9,0.00284212]
[1642412163855,0.86938477,3267.1,3266.9,0.00284212]
[1642412167107,0.86938477,3267.1,3267.0,0.09459454]
[1642412167509,0.86938477,3267.1,3267.0,0.09686823]
[1642412169159,0.81938477,3267.1,3267.0,0.09686823]
[1642412169961,3.12459807,3267.1,3267.0,0.09686823]
[1642412172067,3.12459807,3267.1,3267.0,0.00227369]
[1642412175409,0.81938477,3267.1,3267.0,0.00227369]
[1642412179904,8.55818002,3267.1,3267.0,0.00227369]
[1642412180901,6.21719149,3267.1,3267.0,0.00227369]
[1642412182301,3.44142096,3267.1,3267.0,0.00227369]
[1642412182506,6.51634741,3267.1,3267.0,0.00227369]
[1642412182701,9.33612296,3267.1,3266.9,0.13323732]
[1642412183101,4.10088823,3267.0,3266.9,0.13323732]
[1642412183759,1.32192071,3267.0,3266.9,0.13323732]
[1642412184156,4.103801,3267.0,3266.9,0.13323732]
[1642412184555,9.80076364,3267.0,3266.9,0.13323732]
[1642412184755,9.79169182,3267.0,3266.9,0.13323732]
[1642412185356,7.01888335,3267.0,3266.9,0.13323732]
[1642412186457,5.69696264,3267.0,3266.9,0.13323732]
[1642412186857,3.19207942,3267.0,3266.9,0.10287072]
[1642412187057,3.1811688,3267.0,3266.9,0.10287072]
[1642412189609,5.51691084,3267.0,3266.9,0.10287072]
[1642412191455,3.1811688,3267.0,3266.9,0.10287072]
[1642412195709,5.5119804,3267.0,3266.9,0.10287072]
[1642412196406,2.90085483,3267.0,3266.9,0.10287072]
[1642412197405,0.57004323,3267.0,3266.9,0.10287072]
[1642412198206,2.90088753,3267.0,3266.9,0.10287072]
[1642412199857,0.57004323,3267.0,3266.9,0.10287072]
[1642412202061,4.08296968,3267.2,3266.9,0.10287072]
[1642412202914,2.32722682,3267.0,3266.9,0.10287072]
[1642412203614,3.07492645,3267.1,3266.9,0.10287072]
[1642412204616,6.8896636,3267.2,3266.9,0.10287072]
[1642412205016,4.08296968,3267.2,3266.9,0.10287072]
[1642412205823,4.08296968,3267.2,3266.8,0.23903302]
[1642412205824,3.07492645,3267.0,3266.8,0.53346005]
[1642412206657,3.07492645,3267.1,3266.8,0.53346005]
[1642412206856,3.64498454,3267.1,3267.0,0.24725036]
[1642412207958,3.19207253,3267.1,3267.0,0.24725036]
[1642412208760,6.26699898,3267.1,3267.0,0.24725036]
[1642412211619,3.19207253,3267.1,3267.0,0.24725036]
[1642412212018,2.95640855,3267.1,3267.0,0.3439039]
[1642412215961,2.95640855,3267.1,3267.0,1.49682875]
[1642412218612,2.95640855,3267.1,3267.0,0.3439039]
[1642412218816,5.27568745,3267.1,3267.0,0.3439039]
[1642412219812,2.95640855,3267.1,3267.0,0.3439039]
[1642412220814,5.27568745,3267.1,3267.0,0.3439039]
[1642412221660,3.07492645,3267.3,3267.0,0.35597581]
[1642412221859,3.07492645,3267.3,3267.1,0.76501]
[1642412222065,0.00113684,3267.2,3267.1,0.76501]
[1642412222259,3.81568565,3267.8,3267.2,0.3]
[1642412222459,5.3092215,3268.3,3267.3,1.10279172]
[1642412222460,3.09383095,3267.4,3267.3,1.10279172]
[1642412222661,3.81568565,3267.9,3267.3,1.10279172]
[1642412222662,0.00284212,3267.7,3267.3,1.10279172]
[1642412223060,0.0022737,3267.6,3267.3,1.10279172]
[1642412223360,0.00170527,3267.5,3267.4,3.00497187]
[1642412223560,3.81568565,3267.9,3267.4,4.30497187]
[1642412223861,1.55073871,3267.7,3267.4,4.30497187]
[1642412224063,1.55073871,3267.7,3267.5,1.0]
[1642412225112,3.81568565,3268.6,3267.5,1.0]
[1642412225314,3.81568565,3268.6,3267.6,0.76496]
[1642412225514,1.54831929,3267.8,3267.6,1.06496]
[1642412225915,0.00113685,3267.7,3267.6,1.06496]
[1642412226114,0.00113685,3267.7,3267.6,0.3]
[1642412227014,0.00113685,3267.7,3267.6,0.53418482]
[1642412229058,0.25089957,3268.5,3267.8,0.76489]
[1642412229263,0.25089957,3268.5,3267.8,1.06489]
[1642412229457,0.00397897,3268.4,3267.8,1.06489]
[1642412229657,0.00397897,3268.4,3267.9,0.57639994]
[1642412229859,0.25089957,3268.5,3267.9,0.57639994]
[1642412229860,0.00341054,3268.3,3268.0,1.52963]
[1642412230357,0.00284212,3268.2,3268.0,1.52963]
[1642412230558,0.25089957,3268.5,3268.0,1.52963]
[1642412230958,0.00113685,3268.4,3268.0,1.52963]
[1642412231160,0.00113685,3268.4,3268.0,2.2944]
[1642412231360,0.00113685,3268.4,3268.0,3.2944]
[1642412231559,0.00113685,3268.4,3268.1,1.52958]
[1642412231765,0.00113685,3268.4,3268.1,1.82958]
[1642412231957,0.00113685,3268.4,3268.2,0.07397836]
[1642412232415,0.00113685,3268.4,3268.2,0.83877836]
[1642412232718,0.00113685,3268.4,3268.2,20.24839836]
[1642412232916,0.00113685,3268.4,3268.3,18.18]
[1642412233118,3.09537493,3269.1,3268.4,1.52928]
[1642412233319,3.09537493,3269.1,3268.5,19.0167]
[1642412233516,3.09537493,3269.1,3268.6,2.91680527]
[1642412233717,3.09537493,3269.1,3268.6,5.44604527]
[1642412233917,3.09537493,3269.1,3268.7,17.88]
[1642412234118,3.09537493,3269.1,3268.8,2.52911]
[1642412234326,3.09537493,3269.5,3268.8,21.00911]
[1642412234519,3.09537493,3269.5,3268.9,3.32300949]
[1642412234717,0.00227369,3269.4,3268.9,4.08754949]
[1642412234917,0.00227369,3269.4,3269.1,17.88]
[1642412235119,0.00170527,3269.3,3269.2,1.0]
[1642412235519,0.00170527,3269.3,3269.2,1.3]
[1642412235918,0.00170527,3269.3,3269.2,0.3]
[1642412236173,0.00170527,3269.3,3269.1,1.3]
[1642412236174,0.00170527,3269.3,3269.1,1.6]
[1642412236460,1.54625821,3269.5,3269.2,3.1]
[1642412236659,1.54625821,3269.4,3269.3,1.0]
[1642412236864,1.5485319,3269.4,3269.3,1.3]
[1642412237058,1.5485319,3269.4,3269.2,3.1]
[1642412237059,0.25444982,3269.3,3269.2,2.71427856]
[1642412237360,0.25615509,3269.3,3269.2,2.71427856]
[1642412241912,0.25615509,3269.3,3269.2,2.60755806]
[1642412242715,2.76046838,3269.3,3269.2,2.60755806]
[1642412246965,2.76046838,3269.3,3269.2,2.72001823]
[1642412251764,1.54625821,3269.5,3269.2,2.72001823]
[1642412251962,1.54625821,3269.6,3269.3,0.76461]
[1642412252162,1.54625821,3269.6,3269.1,0.87711017]
[1642412252363,1.54796348,3269.6,3269.1,0.87711017]
[1642412253462,0.00170527,3269.6,3269.3,0.76461]
[1642412254162,1.49796348,3270.0,3269.4,1.52922]
[1642412254364,1.49796348,3270.0,3269.4,2.29495685]
[1642412254562,0.00170527,3269.9,3269.4,2.29495685]
[1642412254765,0.00170527,3269.9,3269.7,0.76461]
[1642412255008,2.29620161,3270.2,3269.4,1.53035685]
[1642412255009,0.00113684,3269.8,3269.4,1.53035685]
[1642412255410,2.83630116,3270.1,3269.4,1.53035685]
[1642412255810,0.00227369,3270.0,3269.4,1.53035685]
[1642412256009,2.2984753,3270.0,3269.4,1.53035685]
[1642412256410,2.2984753,3270.0,3269.4,4.63035685]
[1642412257010,2.2984753,3270.0,3269.7,0.05541105]
[1642412257212,2.2984753,3270.0,3269.7,0.82002105]
[1642412257611,0.00227369,3270.0,3269.7,0.82002105]
[1642412259177,0.00227369,3270.0,3269.4,4.38664384]
[1642412259376,0.00227369,3270.0,3269.6,1.12642141]
[1642412259576,2.2984753,3270.0,3269.6,1.12642141]
[1642412259876,2.2984753,3270.0,3269.6,1.42642141]
[1642412260278,2.2984753,3270.0,3269.6,2.19102141]
[1642412261582,2.2984753,3270.0,3269.6,1.89102141]
[1642412261982,0.42238932,3269.9,3269.7,6.743e-05]
[1642412262419,0.00113684,3269.8,3269.7,6.743e-05]
[1642412263614,0.00113684,3269.8,3269.7,0.30006743]
[1642412264017,2.29733845,3269.8,3269.7,0.30006743]
[1642412264314,0.42238932,3269.9,3269.7,0.30006743]
[1642412264716,0.21127851,3269.9,3269.7,0.30006743]
[1642412265117,0.21127851,3269.9,3269.7,18.48006743]
[1642412265722,3.09537493,3270.5,3269.8,19.40867]
[1642412265919,3.09537493,3270.5,3270.0,0.76435]
[1642412266161,0.00341054,3270.4,3270.0,0.76435]
[1642412266359,0.00341054,3270.4,3270.1,1.52879]
[1642412266661,0.00284212,3270.3,3270.2,1.13597159]
[1642412267063,0.00284212,3270.3,3270.1,1.52879]
[1642412267262,0.00284212,3270.3,3269.8,1.76953842]
[1642412267462,0.0022737,3270.2,3269.8,1.76953842]
[1642412267862,0.00170527,3270.1,3269.8,1.76953842]
[1642412268268,3.10231187,3270.8,3269.8,2.96579268]
[1642412268269,0.00113685,3270.0,3269.8,2.96579268]
[1642412268665,0.00511582,3270.7,3269.8,2.96579268]
[1642412268864,0.00511582,3270.7,3269.9,1.0]
[1642412269064,0.00454739,3270.6,3269.9,1.0]
[1642412269265,0.00454739,3270.6,3270.0,0.76447]
[1642412269464,0.00397897,3270.5,3270.1,0.76444]
[1642412269931,0.00511582,3270.7,3270.1,1.06444]